[Event "Live Chess"]
[Site "Chess.com"]
[Date "2023.05.21"]
[Round "-"]
[White "hturner40"]
[Black "SupremeTactician"]
[Result "1-0"]
[WhiteElo "1794"]
[BlackElo "2290"]
[TimeControl "300"]
[EndTime "0:39:20 PDT"]
[Termination "hturner40 won by resignation"]

1. g3 {[%clk 0:04:52.6]} 1... e5 {[%clk 0:04:58.8]} 2. c4 {[%clk 0:04:49.7]}
2... d5 {[%clk 0:04:57.4]} 3. cxd5 {[%clk 0:04:46]} 3... Qxd5 {[%clk 0:04:56.9]}
4. Nf3 {[%clk 0:04:44.9]} 4... e4 {[%clk 0:04:55.7]} 5. Nc3 {[%clk 0:04:43]}
5... Qf5 {[%clk 0:04:44.8]} 6. Nd4 {[%clk 0:04:37.2]} 6... Qe5 {[%clk
0:04:44.1]} 7. Ndb5 {[%clk 0:04:28.2]} 7... a6 {[%clk 0:04:39.6]} 8. d4 {[%clk
0:04:26.5]} 8... exd3 {[%clk 0:04:37.4]} 9. Bf4 {[%clk 0:04:25]} 9... dxe2
{[%clk 0:04:19.6]} 10. Bxe2 {[%clk 0:04:23.6]} 10... Qxb5 {[%clk 0:04:12.5]} 11.
Bxb5+ {[%clk 0:04:09.4]} 11... axb5 {[%clk 0:04:11.9]} 12. Nxb5 {[%clk
0:04:08.2]} 12... Bb4+ {[%clk 0:04:11.7]} 13. Bd2 {[%clk 0:03:51]} 13... Bxd2+
{[%clk 0:04:10.8]} 14. Qxd2 {[%clk 0:03:49.5]} 14... Na6 {[%clk 0:04:10.6]} 15.
O-O {[%clk 0:03:43.4]} 15... Be6 {[%clk 0:04:06.8]} 16. Qg5 {[%clk 0:03:33.5]}
16... Ne7 {[%clk 0:03:54]} 17. Qxg7 {[%clk 0:03:26.6]} 17... O-O-O {[%clk
0:03:53.1]} 18. Rfc1 {[%clk 0:03:08.5]} 18... Kb8 {[%clk 0:03:33.5]} 19. Qe5
{[%clk 0:02:57.7]} 19... Nc6 {[%clk 0:03:31]} 20. Rxc6 {[%clk 0:02:47.8]} 20...
bxc6 {[%clk 0:03:27.7]} 21. Nd4 {[%clk 0:02:43.9]} 21... Rd5 {[%clk 0:03:26.8]}
22. Qxh8+ {[%clk 0:02:40.1]} 22... Kb7 {[%clk 0:03:25.5]} 23. Nxe6 {[%clk
0:02:37.2]} 23... fxe6 {[%clk 0:03:25.4]} 1-0

[Event "Live Chess"]
[Site "Chess.com"]
[Date "2023.05.21"]
[Round "-"]
[White "matt1979"]
[Black "LiamClery2020"]
[Result "0-1"]
[WhiteElo "1529"]
[BlackElo "2028"]
[TimeControl "300"]
[EndTime "0:39:31 PDT"]
[Termination "LiamClery2020 won by resignation"]

1. f4 {[%clk 0:04:57.9]} 1... e5 {[%clk 0:04:53.8]} 2. e4 {[%clk 0:04:56]} 2...
d5 {[%clk 0:04:45.8]} 3. exd5 {[%clk 0:04:47]} 3... e4 {[%clk 0:04:38.5]} 4. Nc3
{[%clk 0:04:40.8]} 4... Nf6 {[%clk 0:04:37.2]} 5. d3 {[%clk 0:04:35.7]} 5... Bg4
{[%clk 0:04:31.6]} 6. Be2 {[%clk 0:04:34.1]} 6... Bxe2 {[%clk 0:04:30.3]} 7.
Qxe2 {[%clk 0:04:32.6]} 7... Bb4 {[%clk 0:04:28]} 8. Bd2 {[%clk 0:04:27.9]} 8...
O-O {[%clk 0:04:25.8]} 9. O-O-O {[%clk 0:04:22.2]} 9... exd3 {[%clk 0:04:24.5]}
10. Qxd3 {[%clk 0:04:16.8]} 10... Nbd7 {[%clk 0:04:22.1]} 11. Nf3 {[%clk
0:04:11.7]} 11... Re8 {[%clk 0:04:20.8]} 12. Rhe1 {[%clk 0:04:06.3]} 12... Nc5
{[%clk 0:04:18.4]} 13. Qc4 {[%clk 0:03:58.3]} 13... Na6 {[%clk 0:04:15.7]} 14.
a3 {[%clk 0:03:53.3]} 14... Bd6 {[%clk 0:04:13.5]} 15. Ne5 {[%clk 0:03:48.2]}
15... Qc8 {[%clk 0:03:59.3]} 16. g4 {[%clk 0:03:39.4]} 16... Nxg4 {[%clk
0:03:57.5]} 17. Nxg4 {[%clk 0:03:30.2]} 17... Qxg4 {[%clk 0:03:55.2]} 18. Rg1
{[%clk 0:03:28.9]} 18... Qf5 {[%clk 0:03:54.1]} 19. Rg5 {[%clk 0:03:18.6]} 19...
Qf6 {[%clk 0:03:45.9]} 20. Rdg1 {[%clk 0:03:11.8]} 20... g6 {[%clk 0:03:40.9]}
21. Ne4 {[%clk 0:03:00.4]} 21... Rxe4 {[%clk 0:03:39.4]} 22. Qxe4 {[%clk
0:02:56.4]} 22... Bxa3 {[%clk 0:03:39.3]} 23. Bc3 {[%clk 0:02:46.7]} 23... Qxc3
{[%clk 0:03:37.7]} 24. bxa3 {[%clk 0:02:25.5]} 24... Nc5 {[%clk 0:03:35.9]} 25.
Qa4 {[%clk 0:02:03.5]} 0-1

[Event "Live Chess"]
[Site "Chess.com"]
[Date "2023.05.21"]
[Round "-"]
[White "raminguy"]
[Black "Salpingidis"]
[Result "0-1"]
[WhiteElo "1932"]
[BlackElo "2212"]
[TimeControl "300"]
[EndTime "0:39:32 PDT"]
[Termination "Salpingidis won on time"]

1. d4 {[%clk 0:04:58.5]} 1... e6 {[%clk 0:04:57.8]} 2. Nc3 {[%clk 0:04:58.4]}
2... Nf6 {[%clk 0:04:57.1]} 3. e4 {[%clk 0:04:57.1]} 3... d5 {[%clk 0:04:56.6]}
4. Bg5 {[%clk 0:04:55]} 4... dxe4 {[%clk 0:04:54.5]} 5. Nxe4 {[%clk 0:04:53.5]}
5... Nbd7 {[%clk 0:04:54.1]} 6. Nf3 {[%clk 0:04:50.9]} 6... Be7 {[%clk
0:04:53.2]} 7. Nc3 {[%clk 0:04:47.2]} 7... O-O {[%clk 0:04:51.9]} 8. Bd3 {[%clk
0:04:45.3]} 8... b6 {[%clk 0:04:51.3]} 9. O-O {[%clk 0:04:43.7]} 9... Bb7 {[%clk
0:04:50.8]} 10. Re1 {[%clk 0:04:41.7]} 10... c5 {[%clk 0:04:49.8]} 11. h4 {[%clk
0:04:16.8]} 11... cxd4 {[%clk 0:04:46.4]} 12. Nxd4 {[%clk 0:04:13]} 12... Nc5
{[%clk 0:04:45.9]} 13. Bf1 {[%clk 0:04:01.2]} 13... Rc8 {[%clk 0:04:39.1]} 14.
h5 {[%clk 0:03:29.2]} 14... h6 {[%clk 0:04:37.8]} 15. Bh4 {[%clk 0:03:25.3]}
15... Qc7 {[%clk 0:04:35.5]} 16. Bg3 {[%clk 0:03:01.5]} 16... Qd7 {[%clk
0:04:23.9]} 17. Bb5 {[%clk 0:02:54.5]} 17... Qd8 {[%clk 0:04:22.8]} 18. Bh4
{[%clk 0:02:44.6]} 18... Qc7 {[%clk 0:04:19.2]} 19. Bg3 {[%clk 0:02:43.1]} 19...
Bd6 {[%clk 0:04:18.5]} 20. Nxe6 {[%clk 0:02:24.4]} 20... Bxg3 {[%clk 0:03:55.9]}
21. Nxc7 {[%clk 0:02:21.9]} 21... Bxc7 {[%clk 0:03:55.8]} 22. Re7 {[%clk
0:01:58]} 22... Rcd8 {[%clk 0:03:47]} 23. Qe2 {[%clk 0:01:51.5]} 23... Bd6
{[%clk 0:03:41.4]} 24. Re3 {[%clk 0:01:43.4]} 24... Bf4 {[%clk 0:03:37]} 25. Re7
{[%clk 0:01:39]} 25... Bd6 {[%clk 0:03:34.5]} 26. Re3 {[%clk 0:01:37.6]} 26...
Bf4 {[%clk 0:03:24.4]} 27. Re7 {[%clk 0:01:34.1]} 27... Rd2 {[%clk 0:03:23]} 28.
Qe1 {[%clk 0:01:25.3]} 28... Ng4 {[%clk 0:03:11.3]} 29. Be2 {[%clk 0:00:50.2]}
29... Nf6 {[%clk 0:02:47.4]} 30. b4 {[%clk 0:00:48.7]} 30... Nce4 {[%clk
0:02:35.1]} 31. Nxe4 {[%clk 0:00:37.8]} 31... Bxe4 {[%clk 0:02:35]} 32. g3
{[%clk 0:00:24.4]} 32... Bd6 {[%clk 0:02:15.2]} 33. Rxa7 {[%clk 0:00:18.5]}
33... Rxc2 {[%clk 0:02:11.4]} 34. Rd1 {[%clk 0:00:14.9]} 34... Be5 {[%clk
0:02:05.2]} 35. Bd3 {[%clk 0:00:11.2]} 35... Bd4 {[%clk 0:01:59.1]} 36. Bxc2
{[%clk 0:00:09.2]} 36... Bxf2+ {[%clk 0:01:42.7]} 37. Qxf2 {[%clk 0:00:08.3]}
37... Bxc2 {[%clk 0:01:42.6]} 38. Qxc2 {[%clk 0:00:07.4]} 38... Re8 {[%clk
0:01:40.5]} 39. Re1 {[%clk 0:00:06.3]} 39... Rf8 {[%clk 0:01:39.2]} 40. Kf2
{[%clk 0:00:05.7]} 40... Ng4+ {[%clk 0:01:37.9]} 41. Kg2 {[%clk 0:00:04.3]}
41... Nf6 {[%clk 0:01:37.8]} 42. Qc7 {[%clk 0:00:03.5]} 42... Ng4 {[%clk
0:01:35.8]} 43. Qxf7+ {[%clk 0:00:03.4]} 43... Rxf7 {[%clk 0:01:34]} 44. Re8+
{[%clk 0:00:03.3]} 44... Rf8 {[%clk 0:01:32]} 45. Rxf8+ {[%clk 0:00:01.5]} 45...
Kxf8 {[%clk 0:01:31.9]} 46. Rb7 {[%clk 0:00:00.8]} 46... Ne3+ {[%clk 0:01:30.1]}
0-1

[Event "Live Chess"]
[Site "Chess.com"]
[Date "2023.05.21"]
[Round "-"]
[White "WilliamofOrange16th"]
[Black "HoarseyHorsey"]
[Result "1-0"]
[WhiteElo "1831"]
[BlackElo "1457"]
[TimeControl "300"]
[EndTime "0:40:37 PDT"]
[Termination "WilliamofOrange16th won by resignation"]

1. e4 {[%clk 0:04:58.8]} 1... c5 {[%clk 0:04:58.7]} 2. b4 {[%clk 0:04:56.1]}
2... e6 {[%clk 0:04:57.5]} 3. bxc5 {[%clk 0:04:54.5]} 3... Bxc5 {[%clk
0:04:56.2]} 4. Nf3 {[%clk 0:04:53.6]} 4... d5 {[%clk 0:04:55]} 5. exd5 {[%clk
0:04:51.8]} 5... exd5 {[%clk 0:04:53.9]} 6. d4 {[%clk 0:04:51]} 6... Be7 {[%clk
0:04:48.3]} 7. Bd3 {[%clk 0:04:49.5]} 7... Nf6 {[%clk 0:04:47.1]} 8. h3 {[%clk
0:04:48.4]} 8... O-O {[%clk 0:04:45.9]} 9. O-O {[%clk 0:04:48.1]} 9... Nc6
{[%clk 0:04:44.7]} 10. c3 {[%clk 0:04:47.1]} 10... Be6 {[%clk 0:04:42]} 11. Bf4
{[%clk 0:04:45.2]} 11... Bd6 {[%clk 0:04:39.2]} 12. Qd2 {[%clk 0:04:43]} 12...
Re8 {[%clk 0:04:37.3]} 13. a4 {[%clk 0:04:40.5]} 13... Qc7 {[%clk 0:04:34.1]}
14. Bxd6 {[%clk 0:04:38.5]} 14... Qxd6 {[%clk 0:04:34]} 15. Na3 {[%clk
0:04:37.6]} 15... a6 {[%clk 0:04:31]} 16. Nc2 {[%clk 0:04:35.3]} 16... Rab8
{[%clk 0:04:20.3]} 17. Rfe1 {[%clk 0:04:30.9]} 17... Qd7 {[%clk 0:04:19.1]} 18.
Ne5 {[%clk 0:04:29.4]} 18... Nxe5 {[%clk 0:04:15.1]} 19. Rxe5 {[%clk 0:04:29.3]}
19... h6 {[%clk 0:03:51.7]} 20. a5 {[%clk 0:04:21.8]} 20... Nh7 {[%clk
0:03:50.2]} 21. Nb4 {[%clk 0:03:56.3]} 21... Bxh3 {[%clk 0:03:40.6]} 22. Rxe8+
{[%clk 0:03:52.3]} 22... Rxe8 {[%clk 0:03:38]} 23. Bxh7+ {[%clk 0:03:50.7]}
23... Kxh7 {[%clk 0:03:36.7]} 24. gxh3 {[%clk 0:03:46.7]} 24... Qxh3 {[%clk
0:03:33.9]} 25. Qf4 {[%clk 0:03:43.9]} 25... Qe6 {[%clk 0:03:25.7]} 26. Nd3
{[%clk 0:03:21.1]} 26... Qg6+ {[%clk 0:03:22.7]} 27. Qg3 {[%clk 0:03:19.3]}
27... Qf5 {[%clk 0:03:14.7]} 28. Ne5 {[%clk 0:03:11.2]} 28... f6 {[%clk
0:03:07.7]} 29. Qd3 {[%clk 0:03:09.3]} 29... Qxd3 {[%clk 0:03:00.2]} 30. Nxd3
{[%clk 0:03:09.2]} 1-0

[Event "Live Chess"]
[Site "Chess.com"]
[Date "2023.05.21"]
[Round "-"]
[White "martynstanley"]
[Black "Ian-Morley"]
[Result "1-0"]
[WhiteElo "1018"]
[BlackElo "1049"]
[TimeControl "300"]
[EndTime "0:40:39 PDT"]
[Termination "martynstanley won on time"]

1. d4 {[%clk 0:04:58.5]} 1... e5 {[%clk 0:04:59.3]} 2. dxe5 {[%clk 0:04:56.8]}
2... Nc6 {[%clk 0:04:58.5]} 3. f4 {[%clk 0:04:55.9]} 3... Qe7 {[%clk 0:04:57.2]}
4. e3 {[%clk 0:04:54.7]} 4... Qb4+ {[%clk 0:04:55.8]} 5. c3 {[%clk 0:04:53.3]}
5... Qe4 {[%clk 0:04:51.4]} 6. Nf3 {[%clk 0:04:50.9]} 6... Nge7 {[%clk
0:04:34.5]} 7. Bd3 {[%clk 0:04:48.6]} 7... Qd5 {[%clk 0:04:23.9]} 8. O-O {[%clk
0:04:39.1]} 8... b6 {[%clk 0:04:18.4]} 9. Na3 {[%clk 0:04:23.2]} 9... a6 {[%clk
0:03:45.1]} 10. Bc4 {[%clk 0:04:16.8]} 10... Qxd1 {[%clk 0:03:34.3]} 11. Rxd1
{[%clk 0:04:15.4]} 11... b5 {[%clk 0:02:41.9]} 12. Bxf7+ {[%clk 0:03:58.2]}
12... Kxf7 {[%clk 0:02:16.5]} 13. Ng5+ {[%clk 0:03:43.9]} 13... Ke8 {[%clk
0:02:13.3]} 14. b3 {[%clk 0:03:26.3]} 14... h6 {[%clk 0:01:10.9]} 15. Ne4 {[%clk
0:03:17.9]} 1-0

[Event "Live Chess"]
[Site "Chess.com"]
[Date "2023.05.21"]
[Round "-"]
[White "Mugzwang"]
[Black "Hacker_2009"]
[Result "1-0"]
[WhiteElo "1601"]
[BlackElo "1919"]
[TimeControl "300"]
[EndTime "0:40:40 PDT"]
[Termination "Mugzwang won by resignation"]

1. Nf3 {[%clk 0:04:58.8]} 1... Nf6 {[%clk 0:04:57.8]} 2. g3 {[%clk 0:04:54.3]}
2... e6 {[%clk 0:04:55.6]} 3. Bg2 {[%clk 0:04:52.9]} 3... d5 {[%clk 0:04:54.4]}
4. d4 {[%clk 0:04:51.1]} 4... Be7 {[%clk 0:04:53.9]} 5. O-O {[%clk 0:04:49.9]}
5... b6 {[%clk 0:04:52.8]} 6. c4 {[%clk 0:04:48.6]} 6... O-O {[%clk 0:04:52]} 7.
Nc3 {[%clk 0:04:46.9]} 7... Bb7 {[%clk 0:04:50.5]} 8. cxd5 {[%clk 0:04:44.5]}
8... Nxd5 {[%clk 0:04:49.1]} 9. Nxd5 {[%clk 0:04:43.1]} 9... Bxd5 {[%clk
0:04:48.5]} 10. Qc2 {[%clk 0:04:36]} 10... c5 {[%clk 0:04:46.2]} 11. dxc5 {[%clk
0:04:32.2]} 11... Bxc5 {[%clk 0:04:44.9]} 12. Rd1 {[%clk 0:04:26.5]} 12... Na6
{[%clk 0:04:42.7]} 13. e4 {[%clk 0:04:24.7]} 13... Rc8 {[%clk 0:04:37]} 14. exd5
{[%clk 0:04:20.6]} 14... exd5 {[%clk 0:04:35.6]} 15. Qd2 {[%clk 0:04:15.5]}
15... Nc7 {[%clk 0:04:32]} 16. Ng5 {[%clk 0:04:05.2]} 16... h6 {[%clk
0:04:29.5]} 17. Nf3 {[%clk 0:04:00.1]} 17... Re8 {[%clk 0:04:28.8]} 18. b4
{[%clk 0:03:48.8]} 18... Be7 {[%clk 0:04:23.9]} 19. Bb2 {[%clk 0:03:44.8]} 19...
Bf6 {[%clk 0:04:22.9]} 20. Bxf6 {[%clk 0:03:40.8]} 20... Qxf6 {[%clk 0:04:21.8]}
21. Qd4 {[%clk 0:03:33.3]} 21... Qd6 {[%clk 0:04:15.4]} 22. Re1 {[%clk
0:03:20.4]} 22... Rcd8 {[%clk 0:04:13.6]} 23. Rad1 {[%clk 0:03:04.9]} 23... Ne6
{[%clk 0:04:11.6]} 24. Qb2 {[%clk 0:02:53.6]} 24... d4 {[%clk 0:04:06.9]} 25.
Bh3 {[%clk 0:02:40.6]} 25... Qd5 {[%clk 0:03:57.6]} 26. Bxe6 {[%clk 0:02:37.8]}
26... fxe6 {[%clk 0:03:51.1]} 27. Nxd4 {[%clk 0:02:31]} 27... Qh5 {[%clk
0:03:48.3]} 28. Qe2 {[%clk 0:02:14.1]} 28... Qxe2 {[%clk 0:03:45]} 29. Nxe2
{[%clk 0:02:10]} 29... Rc8 {[%clk 0:03:43.1]} 30. Nf4 {[%clk 0:02:08.2]} 30...
e5 {[%clk 0:03:41.5]} 31. Ng6 {[%clk 0:01:57.6]} 31... Rc2 {[%clk 0:03:39.2]}
32. Rxe5 {[%clk 0:01:49.4]} 32... Rxe5 {[%clk 0:03:36.9]} 33. Nxe5 {[%clk
0:01:47.4]} 33... Rxa2 {[%clk 0:03:36.5]} 34. Nc6 {[%clk 0:01:34.3]} 34... a6
{[%clk 0:03:33.2]} 35. Rd8+ {[%clk 0:01:27.2]} 35... Kh7 {[%clk 0:03:30.1]} 36.
Ra8 {[%clk 0:01:25.3]} 36... Rc2 {[%clk 0:03:24.3]} 37. Nb8 {[%clk 0:01:23.4]}
1-0

[Event "Live Chess"]
[Site "Chess.com"]
[Date "2023.05.21"]
[Round "-"]
[White "peter-785"]
[Black "Crowded_House"]
[Result "0-1"]
[WhiteElo "1196"]
[BlackElo "1664"]
[TimeControl "300"]
[EndTime "0:40:59 PDT"]
[Termination "Crowded_House won by resignation"]

1. e4 {[%clk 0:04:59.1]} 1... e6 {[%clk 0:04:58.2]} 2. Nf3 {[%clk 0:04:58.5]}
2... d5 {[%clk 0:04:57.7]} 3. exd5 {[%clk 0:04:56.9]} 3... exd5 {[%clk
0:04:56.5]} 4. d4 {[%clk 0:04:56.4]} 4... Bd6 {[%clk 0:04:54.6]} 5. Be2 {[%clk
0:04:52.7]} 5... Ne7 {[%clk 0:04:53.6]} 6. O-O {[%clk 0:04:51.1]} 6... O-O
{[%clk 0:04:51.3]} 7. h3 {[%clk 0:04:50]} 7... Nd7 {[%clk 0:04:44.9]} 8. Be3
{[%clk 0:04:49.2]} 8... Nf6 {[%clk 0:04:41]} 9. Nbd2 {[%clk 0:04:45]} 9... Nf5
{[%clk 0:04:39.5]} 10. c4 {[%clk 0:04:34.6]} 10... c6 {[%clk 0:04:37.1]} 11. c5
{[%clk 0:04:31.9]} 11... Bc7 {[%clk 0:04:36.3]} 12. Re1 {[%clk 0:04:24.7]} 12...
Re8 {[%clk 0:04:35.2]} 13. Bg5 {[%clk 0:04:21.5]} 13... h6 {[%clk 0:04:32.2]}
14. Bh4 {[%clk 0:04:18.9]} 14... Nxh4 {[%clk 0:04:26.8]} 15. Nxh4 {[%clk
0:04:17.2]} 15... Bd7 {[%clk 0:04:15.2]} 16. Nhf3 {[%clk 0:04:15.4]} 16... Ne4
{[%clk 0:04:09.7]} 17. Nxe4 {[%clk 0:04:04.5]} 17... Rxe4 {[%clk 0:04:05.2]} 18.
Nd2 {[%clk 0:04:02.3]} 18... Re6 {[%clk 0:03:54.5]} 19. Nf3 {[%clk 0:03:58.2]}
19... Qe7 {[%clk 0:03:42.9]} 20. Bf1 {[%clk 0:03:54.9]} 20... Rxe1 {[%clk
0:03:37.3]} 21. Qxe1 {[%clk 0:03:44.6]} 21... Re8 {[%clk 0:03:35.1]} 22. Qxe7
{[%clk 0:03:41.4]} 22... Rxe7 {[%clk 0:03:33.4]} 23. Re1 {[%clk 0:03:40.1]}
23... Rxe1 {[%clk 0:03:31.3]} 24. Nxe1 {[%clk 0:03:39.1]} 24... Bf5 {[%clk
0:03:25.9]} 25. Bd3 {[%clk 0:03:29.4]} 25... Bxd3 {[%clk 0:03:21.2]} 26. Nxd3
{[%clk 0:03:28]} 26... Bd8 {[%clk 0:03:13.7]} 27. Kf1 {[%clk 0:03:10.2]} 27...
Bf6 {[%clk 0:03:12.1]} 28. Ne5 {[%clk 0:03:05.7]} 28... g5 {[%clk 0:02:48.4]}
29. Ke2 {[%clk 0:02:53.7]} 29... Bxe5 {[%clk 0:02:39.2]} 30. dxe5 {[%clk
0:02:51.2]} 30... Kf8 {[%clk 0:02:38.4]} 31. Ke3 {[%clk 0:02:46.6]} 31... Ke7
{[%clk 0:02:37.9]} 32. f4 {[%clk 0:02:45.7]} 32... f6 {[%clk 0:02:29.9]} 33.
fxg5 {[%clk 0:02:32.3]} 33... hxg5 {[%clk 0:02:25.9]} 34. exf6+ {[%clk
0:02:21.8]} 34... Kxf6 {[%clk 0:02:25]} 35. g4 {[%clk 0:02:10.6]} 35... b6
{[%clk 0:02:13.6]} 36. b4 {[%clk 0:02:09.5]} 36... bxc5 {[%clk 0:02:07.1]} 37.
bxc5 {[%clk 0:02:07.3]} 37... a5 {[%clk 0:02:04.2]} 38. Kd4 {[%clk 0:01:47.4]}
38... a4 {[%clk 0:01:56.2]} 39. a3 {[%clk 0:01:45.6]} 39... Ke6 {[%clk
0:01:54.2]} 40. Ke3 {[%clk 0:01:32.5]} 40... Ke5 {[%clk 0:01:52.7]} 41. Kd3
{[%clk 0:01:26.2]} 41... Kf4 {[%clk 0:01:48]} 42. Ke2 {[%clk 0:01:17.6]} 42...
Kg3 {[%clk 0:01:39.5]} 0-1

[Event "Live Chess"]
[Site "Chess.com"]
[Date "2023.05.21"]
[Round "-"]
[White "Denz14"]
[Black "Leonid_Starozhilov"]
[Result "0-1"]
[WhiteElo "1022"]
[BlackElo "2648"]
[TimeControl "300"]
[EndTime "0:41:06 PDT"]
[Termination "Leonid_Starozhilov won by resignation"]

1. e4 {[%clk 0:04:56.3]} 1... c5 {[%clk 0:04:58.5]} 2. Nf3 {[%clk 0:04:51.4]}
2... e6 {[%clk 0:04:54.6]} 3. c3 {[%clk 0:04:49.7]} 3... Nf6 {[%clk 0:04:52.2]}
4. d3 {[%clk 0:04:45.8]} 4... Nc6 {[%clk 0:04:41.4]} 5. Bg5 {[%clk 0:04:44.3]}
5... h6 {[%clk 0:04:38.4]} 6. Bh4 {[%clk 0:04:39.2]} 6... d5 {[%clk 0:04:35.1]}
7. e5 {[%clk 0:04:36.3]} 7... g5 {[%clk 0:04:34.2]} 8. exf6 {[%clk 0:04:34.1]}
8... gxh4 {[%clk 0:04:26.2]} 9. Nxh4 {[%clk 0:04:28.4]} 9... Qxf6 {[%clk
0:04:22.1]} 10. Nf3 {[%clk 0:04:27.1]} 10... Bd6 {[%clk 0:04:18.7]} 11. Nbd2
{[%clk 0:04:06.4]} 11... Bd7 {[%clk 0:04:14.8]} 12. Qb3 {[%clk 0:04:02]} 12...
O-O-O {[%clk 0:04:12.9]} 13. a4 {[%clk 0:03:57.5]} 13... h5 {[%clk 0:03:56.8]}
14. a5 {[%clk 0:03:52.1]} 14... a6 {[%clk 0:03:51.5]} 15. c4 {[%clk 0:03:41.2]}
15... Bc7 {[%clk 0:03:47.8]} 16. cxd5 {[%clk 0:03:37.1]} 16... exd5 {[%clk
0:03:46.4]} 17. Qc3 {[%clk 0:03:31.9]} 17... Rhe8+ {[%clk 0:03:45.1]} 18. Kd1
{[%clk 0:03:27.1]} 18... Qxc3 {[%clk 0:03:36.7]} 19. bxc3 {[%clk 0:03:25.6]}
19... Bxa5 {[%clk 0:03:36.6]} 20. c4 {[%clk 0:03:20.9]} 20... Bg4 {[%clk
0:03:29.2]} 21. h3 {[%clk 0:03:16.6]} 21... Bxf3+ {[%clk 0:03:25.4]} 22. gxf3
{[%clk 0:03:12.3]} 22... Bxd2 {[%clk 0:03:22.3]} 23. Kxd2 {[%clk 0:03:10.3]}
23... dxc4 {[%clk 0:03:19.9]} 24. Kc3 {[%clk 0:03:03.7]} 24... Nd4 {[%clk
0:03:13.7]} 25. dxc4 {[%clk 0:02:55.8]} 25... Nxf3 {[%clk 0:03:12.4]} 26. Bg2
{[%clk 0:02:47.7]} 26... Nd4 {[%clk 0:03:07.4]} 27. Rab1 {[%clk 0:02:41]} 27...
Rd7 {[%clk 0:03:01]} 28. h4 {[%clk 0:02:19.2]} 28... Re2 {[%clk 0:02:58.2]} 29.
Bh3 {[%clk 0:02:10.9]} 29... f5 {[%clk 0:02:57.2]} 30. Rbd1 {[%clk 0:01:56.1]}
30... Rc2+ {[%clk 0:02:54.7]} 31. Kd3 {[%clk 0:01:47]} 31... Rxf2 {[%clk
0:02:54.6]} 32. Ke3 {[%clk 0:01:40.3]} 32... Rf3+ {[%clk 0:02:50]} 0-1

[Event "Live Chess"]
[Site "Chess.com"]
[Date "2023.05.21"]
[Round "-"]
[White "Tushinskiy"]
[Black "Biranidun"]
[Result "0-1"]
[WhiteElo "2183"]
[BlackElo "2541"]
[TimeControl "300"]
[EndTime "0:41:13 PDT"]
[Termination "Biranidun won by resignation"]

1. d4 {[%clk 0:04:58]} 1... Nf6 {[%clk 0:04:59.1]} 2. c3 {[%clk 0:04:57.9]} 2...
g6 {[%clk 0:04:58.4]} 3. Nf3 {[%clk 0:04:57.8]} 3... Bg7 {[%clk 0:04:58.1]} 4.
Bf4 {[%clk 0:04:56.1]} 4... O-O {[%clk 0:04:57.2]} 5. Bg3 {[%clk 0:04:56]} 5...
d6 {[%clk 0:04:56.9]} 6. Nbd2 {[%clk 0:04:55.5]} 6... b6 {[%clk 0:04:56.4]} 7.
e4 {[%clk 0:04:53.5]} 7... Bb7 {[%clk 0:04:55]} 8. Bd3 {[%clk 0:04:52.8]} 8...
c5 {[%clk 0:04:54.3]} 9. d5 {[%clk 0:04:51.6]} 9... a6 {[%clk 0:04:51.1]} 10.
Qe2 {[%clk 0:04:50.6]} 10... b5 {[%clk 0:04:50.4]} 11. O-O {[%clk 0:04:50.1]}
11... c4 {[%clk 0:04:49.5]} 12. Bc2 {[%clk 0:04:49.1]} 12... Nbd7 {[%clk
0:04:49.4]} 13. Rad1 {[%clk 0:04:48.4]} 13... Nc5 {[%clk 0:04:47.3]} 14. Nd4
{[%clk 0:04:47.5]} 14... Re8 {[%clk 0:04:41.6]} 15. f4 {[%clk 0:04:46.4]} 15...
e6 {[%clk 0:04:37.3]} 16. dxe6 {[%clk 0:04:44.7]} 16... Nxe6 {[%clk 0:04:31.7]}
17. Nxe6 {[%clk 0:04:43.1]} 17... Rxe6 {[%clk 0:04:31.6]} 18. Rfe1 {[%clk
0:04:37.2]} 18... Nh5 {[%clk 0:04:28.3]} 19. Qf2 {[%clk 0:04:33.1]} 19... Nxg3
{[%clk 0:04:23]} 20. hxg3 {[%clk 0:04:33]} 20... Qc7 {[%clk 0:04:18.1]} 21. Nf3
{[%clk 0:04:31.7]} 21... Rae8 {[%clk 0:04:14.7]} 22. Nd4 {[%clk 0:04:26.1]}
22... R6e7 {[%clk 0:04:12.2]} 23. f5 {[%clk 0:04:20.5]} 23... Be5 {[%clk
0:03:46.2]} 24. Kh2 {[%clk 0:04:08.3]} 24... h5 {[%clk 0:03:43.5]} 25. fxg6
{[%clk 0:04:02.9]} 25... fxg6 {[%clk 0:03:42.5]} 26. Nf3 {[%clk 0:03:59.4]}
26... Bg7 {[%clk 0:03:35.6]} 27. Nh4 {[%clk 0:03:56.4]} 27... Rf8 {[%clk
0:03:14.4]} 28. Qd2 {[%clk 0:03:53.8]} 28... Re6 {[%clk 0:03:11.6]} 29. Qg5
{[%clk 0:03:47.3]} 29... Rf2 {[%clk 0:02:52.7]} 30. Rd2 {[%clk 0:03:29]} 30...
Rxd2 {[%clk 0:02:50.6]} 31. Qxd2 {[%clk 0:03:28.9]} 31... Be5 {[%clk 0:02:30]}
32. Qg5 {[%clk 0:03:24.7]} 32... Qf7 {[%clk 0:02:19.3]} 33. Re3 {[%clk
0:03:10.1]} 33... Qf6 {[%clk 0:02:12.5]} 34. Qxf6 {[%clk 0:03:05.8]} 34... Rxf6
{[%clk 0:02:10.1]} 35. Nf3 {[%clk 0:03:03.2]} 35... Kg7 {[%clk 0:02:06.5]} 36.
a4 {[%clk 0:02:57.9]} 36... g5 {[%clk 0:01:55.8]} 37. Nxg5 {[%clk 0:02:50.7]}
37... Rf2 {[%clk 0:01:53.8]} 38. Bd1 {[%clk 0:02:48.8]} 38... h4 {[%clk
0:01:51.6]} 39. axb5 {[%clk 0:02:38.4]} 39... hxg3+ {[%clk 0:01:50.4]} 40. Kh3
{[%clk 0:02:36.4]} 40... axb5 {[%clk 0:01:41.7]} 41. b3 {[%clk 0:02:31.3]} 41...
Rf1 {[%clk 0:01:40.2]} 42. Be2 {[%clk 0:02:21.7]} 42... Bc8+ {[%clk 0:01:38.6]}
43. Kh4 {[%clk 0:02:20.3]} 43... Rh1+ {[%clk 0:01:36.3]} 44. Nh3 {[%clk
0:02:12.3]} 44... Rxh3+ {[%clk 0:01:35.1]} 45. gxh3 {[%clk 0:02:10.5]} 45... g2
{[%clk 0:01:35]} 46. bxc4 {[%clk 0:01:55.7]} 46... g1=Q {[%clk 0:01:33.6]} 0-1